Workbook

Sheet Sheet1
A1: 2023年遵义市红花岗区“特岗计划”教师招聘成绩及进入体检人员名单
A2: 序号 | B2: 报考职位 | C2: 准考证号 | D2: 姓名 | E2: 笔试分数 | F2: 面试分数 | G2: 总成绩 | H2: 备注
A3: =ROW()-2 -> 1 | B3: 初中语文 | C3: 20230201033901 | D3: 吴霞 | E3: 74.00 | F3: 77.66 | G3: =E3*0.5+F3*0.5 -> 75.83 | H3: 进入体检
A4: =ROW()-2 -> 2 | B4: 初中语文 | C4: 20230201033216 | D4: 黄芳芳 | E4: 75.50 | F4: 75.70 | G4: 75.60
A5: 3 | B5: 初中语文 | C5: 20230201033223 | D5: 曾丹 | E5: 70.50 | F5: 78.52 | G5: 74.51
A6: 4 | B6: 初中英语 | C6: 20230201030502 | D6: 姚玲 | E6: 90.50 | F6: 92.74 | G6: 91.62 | H6: 进入体检
A7: 5 | B7: 初中英语 | C7: 20230201030317 | D7: 范晓莹 | E7: 84.50 | F7: 95.42 | G7: 89.96 | H7: 进入体检
A8: 6 | B8: 初中英语 | C8: 20230201030308 | D8: 付英 | E8: 81.50 | F8: 94.94 | G8: 88.22
A9: 7 | B9: 初中英语 | C9: 20230201030318 | D9: 李颖 | E9: 81.50 | F9: 93.54 | G9: 87.52
A10: 8 | B10: 初中英语 | C10: 20230201030524 | D10: 肖姗 | E10: 81.50 | F10: 92.26 | G10: 86.88
A11: 9 | B11: 初中英语 | C11: 20230201030303 | D11: 罗丹 | E11: 82.50 | F11: 90.88 | G11: 86.69
A12: 10 | B12: 初中英语 | C12: 20230201030612 | D12: 王伦波 | E12: 82.00 | F12: 89.30 | G12: 85.65
A13: 11 | B13: 初中英语 | C13: 20230201030523 | D13: 雷恒 | E13: 82.00 | F13: 86.84 | G13: 84.42
A14: 12 | B14: 初中生物 | C14: 20230201030218 | D14: 陈小丽 | E14: 66.00 | F14: 87.52 | G14: 76.76 | H14: 进入体检
A15: 13 | B15: 初中生物 | C15: 20230201030228 | D15: 黄晓燕 | E15: 65.00 | F15: 86.02 | G15: 75.51
A16: 14 | B16: 初中生物 | C16: 20230201030219 | D16: 宋攀玉 | E16: 61.00 | F16: 83.14 | G16: 72.07
A17: 15 | B17: 小学语文 | C17: 20230201032629 | D17: 陈斯梅 | E17: 78.50 | F17: 85.10 | G17: 81.80 | H17: 进入体检
A18: 16 | B18: 小学语文 | C18: 20230201032201 | D18: 谭霜 | E18: 76.00 | F18: 84.12 | G18: 80.06 | H18: 进入体检
A19: 17 | B19: 小学语文 | C19: 20230201032805 | D19: 刘礼静 | E19: 75.00 | F19: 84.08 | G19: 79.54 | H19: 进入体检
A20: 18 | B20: 小学语文 | C20: 20230201032316 | D20: 陈露 | E20: 75.00 | F20: 83.14 | G20: 79.07 | H20: 进入体检
A21: 19 | B21: 小学语文 | C21: 20230201031624 | D21: 陈德英 | E21: 72.00 | F21: 85.72 | G21: 78.86 | H21: 进入体检
A22: 20 | B22: 小学语文 | C22: 20230201032028 | D22: 杨妮 | E22: 73.50 | F22: 84.14 | G22: 78.82 | H22: 进入体检
A23: 21 | B23: 小学语文 | C23: 20230201031703 | D23: 胡锐灿 | E23: 71.00 | F23: 86.16 | G23: 78.58 | H23: 进入体检
A24: 22 | B24: 小学语文 | C24: 20230201033108 | D24: 陈清珍 | E24: 76.50 | F24: 79.60 | G24: 78.05 | H24: 进入体检
A25: 23 | B25: 小学语文 | C25: 20230201032305 | D25: 梁成琳 | E25: 74.00 | F25: 81.62 | G25: 77.81 | H25: 进入体检
A26: 24 | B26: 小学语文 | C26: 20230201033025 | D26: 范福琼 | E26: 71.00 | F26: 84.60 | G26: 77.80
A27: 25 | B27: 小学语文 | C27: 20230201031715 | D27: 张小芳 | E27: 72.00 | F27: 82.92 | G27: 77.46
A28: 26 | B28: 小学语文 | C28: 20230201032808 | D28: 周云霞 | E28: 71.50 | F28: 83.40 | G28: 77.45
A29: 27 | B29: 小学语文 | C29: 20230201033118 | D29: 甘旭 | E29: 71.50 | F29: 83.06 | G29: 77.28
A30: 28 | B30: 小学语文 | C30: 20230201032125 | D30: 何静 | E30: 73.50 | F30: 80.80 | G30: 77.15
A31: 29 | B31: 小学语文 | C31: 20230201031420 | D31: 倪娟 | E31: 71.50 | F31: 81.90 | G31: 76.70
A32: 30 | B32: 小学语文 | C32: 20230201032610 | D32: 李娅 | E32: 72.50 | F32: 80.52 | G32: 76.51
A33: 31 | B33: 小学语文 | C33: 20230201031803 | D33: 黎艺雯 | E33: 72.50 | F33: 79.90 | G33: 76.20
A34: 32 | B34: 小学语文 | C34: 20230201032721 | D34: 游芳 | E34: 71.00 | F34: 81.08 | G34: 76.04
A35: 33 | B35: 小学语文 | C35: 20230201032429 | D35: 卢虹羽 | E35: 71.50 | F35: 80.54 | G35: 76.02
A36: 34 | B36: 小学语文 | C36: 20230201031417 | D36: 王青青 | E36: 72.00 | F36: 79.84 | G36: 75.92
A37: 35 | B37: 小学语文 | C37: 20230201032405 | D37: 吴嘉嘉 | E37: 71.00 | F37: 80.78 | G37: 75.89
A38: 36 | B38: 小学语文 | C38: 20230201032625 | D38: 苏阳 | E38: 71.00 | F38: 79.38 | G38: 75.19
A39: 37 | B39: 小学语文 | C39: 20230201031928 | D39: 张朝琴 | E39: 73.00 | F39: 75.66 | G39: 74.33
A40: 38 | B40: 小学语文 | C40: 20230201031812 | D40: 李熠 | E40: 71.00 | F40: 76.24 | G40: 73.62
A41: 39 | B41: 小学语文 | C41: 20230201031412 | D41: 李兰兰 | E41: 75.00 | F41: 缺考 | G41: =E41*0.5 -> 37.50
A42: 40 | B42: 小学语文 | C42: 20230201031817 | D42: 王癸兰 | E42: 73.50 | F42: 缺考 | G42: =E42*0.5 -> 36.75
A43: 41 | B43: 小学语文 | C43: 20230201032420 | D43: 朱君梅 | E43: 72.50 | F43: 缺考 | G43: =E43*0.5 -> 36.25
A44: 42 | B44: 小学语文 | C44: 20230201031728 | D44: 赵倩 | E44: 71.50 | F44: 缺考 | G44: =E44*0.5 -> 35.75
A45: 43 | B45: 小学语文 | C45: 20230201032930 | D45: 黄文静 | E45: 71.00 | F45: 缺考 | G45: =E45*0.5 -> 35.50
A46: 44 | B46: 小学英语 | C46: 20230201031203 | D46: 文鑫 | E46: 90.50 | F46: 91.56 | G46: =E46*0.5+F46*0.5 -> 91.03 | H46: 进入体检
A47: 45 | B47: 小学英语 | C47: 20230201030820 | D47: 王庆佳 | E47: 87.00 | F47: 92.02 | G47: 89.51 | H47: 进入体检
A48: 46 | B48: 小学英语 | C48: 20230201030804 | D48: 王娜 | E48: 87.50 | F48: 91.12 | G48: 89.31 | H48: 进入体检
A49: 47 | B49: 小学英语 | C49: 20230201030821 | D49: 穆桂娟 | E49: 82.50 | F49: 93.82 | G49: 88.16
A50: 48 | B50: 小学英语 | C50: 20230201031111 | D50: 张学文 | E50: 82.00 | F50: 93.18 | G50: 87.59
A51: 49 | B51: 小学英语 | C51: 20230201030703 | D51: 侯智怡 | E51: 80.00 | F51: 94.18 | G51: 87.09
A52: 50 | B52: 小学英语 | C52: 20230201031213 | D52: 张德翠 | E52: 81.00 | F52: 89.46 | G52: 85.23
A53: 51 | B53: 小学英语 | C53: 20230201031317 | D53: 张国静 | E53: 80.00 | F53: 89.08 | G53: 84.54
A54: 52 | B54: 小学英语 | C54: 20230201030926 | D54: 付旭 | E54: 80.50 | F54: 87.86 | G54: 84.18
A55: 53 | B55: 小学英语 | C55: 20230201031006 | D55: 袁梦 | E55: 80.00 | F55: 87.28 | G55: 83.64
A56: 54 | B56: 小学数学 | C56: 20230201033313 | D56: 林艳青 | E56: 91.00 | F56: 88.14 | G56: 89.57 | H56: 进入体检
A57: 55 | B57: 小学数学 | C57: 20230201033417 | D57: 陆勤 | E57: 90.00 | F57: 85.10 | G57: 87.55 | H57: 进入体检
A58: 56 | B58: 小学数学 | C58: 20230201033422 | D58: 郑舟梅 | E58: 90.00 | F58: 84.76 | G58: 87.38 | H58: 进入体检
A59: 57 | B59: 小学数学 | C59: 20230201033423 | D59: 陈红松 | E59: 89.00 | F59: 85.12 | G59: 87.06
A60: 58 | B60: 小学数学 | C60: 20230201033815 | D60: 张桃 | E60: 88.00 | F60: 84.76 | G60: 86.38
A61: 59 | B61: 小学数学 | C61: 20230201033403 | D61: 张永 | E61: 86.00 | F61: 86.44 | G61: 86.22
A62: 60 | B62: 小学数学 | C62: 20230201033304 | D62: 罗涵 | E62: 83.00 | F62: 85.60 | G62: 84.30
A63: 61 | B63: 小学数学 | C63: 20230201033322 | D63: 黎璇 | E63: 84.00 | F63: 83.00 | G63: 83.50
A64: 62 | B64: 小学数学 | C64: 20230201033506 | D64: 罗奇贵 | E64: 83.00 | F64: 79.52 | G64: 81.26
A65: 63 | B65: 小学数学 | C65: 20230201033816 | D65: 盛明月 | E65: 84.00 | F65: 缺考 | G65: =E65*0.5 -> 42.00
A66: 64 | B66: 小学音乐 | C66: 20230201033718 | D66: 李双露 | E66: 79.00 | F66: 89.24 | G66: =E66*0.5+F66*0.5 -> 84.12 | H66: 进入体检
A67: 65 | B67: 小学音乐 | C67: 20230201033709 | D67: 罗杰 | E67: 75.00 | F67: 91.84 | G67: 83.42
A68: =ROW()-2 -> 66 | B68: 小学音乐 | C68: 20230201033613 | D68: 铁远琴 | E68: 74.00 | F68: 84.58 | G68: 79.29
A69: 67 | B69: 小学音乐 | C69: 20230201033920 | D69: 王流芳 | E69: 74.00 | F69: 79.58 | G69: 76.79
A70: 68 | B70: 第九幼儿园 | C70: 20230201011325 | D70: 谢蒙威 | E70: 75.00 | F70: 82.42 | G70: 78.71 | H70: 进入体检
A71: 69 | B71: 第九幼儿园 | C71: 20230201013601 | D71: 唐玉洁 | E71: 69.50 | F71: 87.02 | G71: 78.26 | H71: 进入体检
A72: 70 | B72: 第九幼儿园 | C72: 20230201010201 | D72: 戚梦 | E72: 76.00 | F72: 79.78 | G72: 77.89 | H72: 进入体检
A73: 71 | B73: 第九幼儿园 | C73: 20230201023024 | D73: 李杰 | E73: 75.50 | F73: 80.14 | G73: 77.82 | H73: 进入体检
A74: 72 | B74: 第九幼儿园 | C74: 20230201022714 | D74: 余晨 | E74: 76.50 | F74: 77.16 | G74: 76.83 | H74: 进入体检
A75: 73 | B75: 第九幼儿园 | C75: 20230201010102 | D75: 谭建会 | E75: 74.00 | F75: 79.22 | G75: 76.61 | H75: 进入体检
A76: 74 | B76: 第九幼儿园 | C76: 20230201015517 | D76: 陈霜 | E76: 74.00 | F76: 78.62 | G76: 76.31 | H76: 进入体检
A77: 75 | B77: 第九幼儿园 | C77: 20230201015811 | D77: 冉应静 | E77: 73.50 | F77: 78.34 | G77: 75.92 | H77: 进入体检
A78: 76 | B78: 第九幼儿园 | C78: 20230201022720 | D78: 陈琴 | E78: 75.50 | F78: 75.94 | G78: 75.72 | H78: 进入体检
A79: 77 | B79: 第九幼儿园 | C79: 20230201020202 | D79: 张修盈 | E79: 71.00 | F79: 79.18 | G79: 75.09 | H79: 进入体检
A80: 78 | B80: 第九幼儿园 | C80: 20230201015612 | D80: 王玉婷 | E80: 74.00 | F80: 76.10 | G80: 75.05 | H80: 进入体检
A81: 79 | B81: 第九幼儿园 | C81: 20230201011720 | D81: 张旭 | E81: 70.50 | F81: 77.72 | G81: 74.11 | H81: 进入体检
A82: 80 | B82: 第九幼儿园 | C82: 20230201013116 | D82: 王诗韵 | E82: 69.00 | F82: 77.26 | G82: 73.13
A83: 81 | B83: 第九幼儿园 | C83: 20230201010128 | D83: 罗欢 | E83: 70.50 | F83: 74.92 | G83: 72.71
A84: 82 | B84: 第九幼儿园 | C84: 20230201015630 | D84: 王纯 | E84: 66.00 | F84: 79.28 | G84: 72.64
A85: 83 | B85: 第九幼儿园 | C85: 20230201021722 | D85: 袁洪 | E85: 69.50 | F85: 75.78 | G85: 72.64
A86: 84 | B86: 第九幼儿园 | C86: 20230201020516 | D86: 王世霞 | E86: 69.50 | F86: 75.00 | G86: 72.25
A87: 85 | B87: 第九幼儿园 | C87: 20230201022818 | D87: 代英 | E87: 71.50 | F87: 72.44 | G87: 71.97
A88: 86 | B88: 第九幼儿园 | C88: 20230201020807 | D88: 谭小义 | E88: 67.50 | F88: 76.20 | G88: 71.85
A89: 87 | B89: 第九幼儿园 | C89: 20230201021608 | D89: 李红礼 | E89: 73.50 | F89: 70.20 | G89: 71.85
A90: 88 | B90: 第九幼儿园 | C90: 20230201014906 | D90: 杜承琴 | E90: 75.50 | F90: 67.48 | G90: 71.49
A91: 89 | B91: 第九幼儿园 | C91: 20230201013927 | D91: 程娇 | E91: 69.00 | F91: 73.54 | G91: 71.27
A92: 90 | B92: 第九幼儿园 | C92: 20230201014918 | D92: 邹连芳 | E92: 70.50 | F92: 71.38 | G92: 70.94
A93: 91 | B93: 第九幼儿园 | C93: 20230201021114 | D93: 何婷婷 | E93: 68.00 | F93: 73.08 | G93: 70.54
A94: 92 | B94: 第九幼儿园 | C94: 20230201015729 | D94: 刘销 | E94: 71.00 | F94: 69.94 | G94: 70.47
A95: 93 | B95: 第九幼儿园 | C95: 20230201013402 | D95: 郑青青 | E95: 66.50 | F95: 74.20 | G95: 70.35
A96: 94 | B96: 第九幼儿园 | C96: 20230201011208 | D96: 赵欢 | E96: 67.00 | F96: 73.64 | G96: 70.32
A97: 95 | B97: 第九幼儿园 | C97: 20230201015613 | D97: 包玉婷 | E97: 68.00 | F97: 72.50 | G97: 70.25
A98: 96 | B98: 第九幼儿园 | C98: 20230201016114 | D98: 成海灵 | E98: 66.50 | F98: 73.86 | G98: 70.18
A99: 97 | B99: 第九幼儿园 | C99: 20230201011026 | D99: 周梦祝 | E99: 67.50 | F99: 72.56 | G99: 70.03
A100: 98 | B100: 第九幼儿园 | C100: 20230201020227 | D100: 胡红敏 | E100: 72.50 | F100: 67.42 | G100: 69.96
A101: 99 | B101: 第九幼儿园 | C101: 20230201012427 | D101: 曹柳 | E101: 67.50 | F101: 69.54 | G101: 68.52
A102: 100 | B102: 第九幼儿园 | C102: 20230201021025 | D102: 曾祥会 | E102: 66.00 | F102: 69.30 | G102: 67.65
A103: 101 | B103: 第九幼儿园 | C103: 20230201014615 | D103: 余舒婷 | E103: 66.50 | F103: 67.40 | G103: 66.95
A104: 102 | B104: 第九幼儿园 | C104: 20230201010421 | D104: 刘艳 | E104: 67.00 | F104: 66.66 | G104: 66.83
A105: 103 | B105: 第九幼儿园 | C105: 20230201013024 | D105: 韩继群 | E105: 66.00 | F105: 67.42 | G105: 66.71
A106: 104 | B106: 第九幼儿园 | C106: 20230201015719 | D106: 何艳姗 | E106: 66.00 | F106: 66.32 | G106: 66.16
A107: 105 | B107: 第九幼儿园 | C107: 20230201016411 | D107: 罗燕 | E107: 79.50 | F107: 缺考 | G107: =E107*0.5 -> 39.75
A108: 106 | B108: 第九幼儿园 | C108: 20230201011212 | D108: 徐涵 | E108: 67.00 | F108: 缺考 | G108: =E108*0.5 -> 33.50
A109: 107 | B109: 第十幼儿园 | C109: 20230201021308 | D109: 唐春燕 | E109: 82.00 | F109: 89.78 | G109: =E109*0.5+F109*0.5 -> 85.89 | H109: 进入体检
A110: 108 | B110: 第十幼儿园 | C110: 20230201015027 | D110: 黎文娟 | E110: 76.50 | F110: 88.30 | G110: 82.40 | H110: 进入体检
A111: 109 | B111: 第十幼儿园 | C111: 20230201022903 | D111: 蒋兴卯 | E111: 74.50 | F111: 84.72 | G111: 79.61 | H111: 进入体检
A112: 110 | B112: 第十幼儿园 | C112: 20230201015510 | D112: 龙远方 | E112: 66.00 | F112: 88.94 | G112: 77.47 | H112: 进入体检
A113: 111 | B113: 第十幼儿园 | C113: 20230201011805 | D113: 甘雯竹 | E113: 66.00 | F113: 87.58 | G113: 76.79 | H113: 进入体检
A114: 112 | B114: 第十幼儿园 | C114: 20230201014212 | D114: 刘若 | E114: 65.00 | F114: 88.24 | G114: 76.62
A115: 113 | B115: 第十幼儿园 | C115: 20230201010628 | D115: 覃文燕 | E115: 70.00 | F115: 82.86 | G115: 76.43
A116: 114 | B116: 第十幼儿园 | C116: 20230201010211 | D116: 王秀云 | E116: 68.50 | F116: 84.34 | G116: 76.42
A117: 115 | B117: 第十幼儿园 | C117: 20230201022625 | D117: 刘玉红 | E117: 68.50 | F117: 82.22 | G117: 75.36
A118: 116 | B118: 第十幼儿园 | C118: 20230201020314 | D118: 吕思京 | E118: 65.00 | F118: 81.62 | G118: 73.31
A119: 117 | B119: 第十幼儿园 | C119: 20230201010530 | D119: 杨娜 | E119: 67.50 | F119: 77.78 | G119: 72.64
A120: 118 | B120: 第十幼儿园 | C120: 20230201014103 | D120: 简田霞 | E120: 64.00 | F120: 79.78 | G120: 71.89
A121: 119 | B121: 第十幼儿园 | C121: 20230201015422 | D121: 田思慧 | E121: 63.50 | F121: 79.20 | G121: 71.35
A122: 120 | B122: 第十幼儿园 | C122: 20230201010108 | D122: 肖丹贤 | E122: 62.00 | F122: 78.74 | G122: 70.37
A123: 121 | B123: 第十幼儿园 | C123: 20230201015618 | D123: 陈红年 | E123: 61.00 | F123: 缺考 | G123: =E123*0.5 -> 30.50
A124: 122 | B124: 第十幼儿园 | C124: 20230201016311 | D124: 黄丝雨 | E124: 61.00 | F124: 缺考 | G124: =E124*0.5 -> 30.50
A125: 123 | B125: 第十一幼儿园 | C125: 20230201016419 | D125: 张伦飞 | E125: 76.00 | F125: 89.72 | G125: =E125*0.5+F125*0.5 -> 82.86 | H125: 进入体检
A126: 124 | B126: 第十一幼儿园 | C126: 20230201014026 | D126: 何德敏 | E126: 78.00 | F126: 82.76 | G126: 80.38 | H126: 进入体检
A127: 125 | B127: 第十一幼儿园 | C127: 20230201021120 | D127: 王凤 | E127: 76.00 | F127: 84.20 | G127: 80.10 | H127: 进入体检
A128: 126 | B128: 第十一幼儿园 | C128: 20230201023305 | D128: 郑雨丹 | E128: 72.00 | F128: 85.90 | G128: 78.95 | H128: 进入体检
A129: 127 | B129: 第十一幼儿园 | C129: 20230201014529 | D129: 王丽 | E129: 71.50 | F129: 85.72 | G129: 78.61 | H129: 进入体检
A130: 128 | B130: 第十一幼儿园 | C130: 20230201022608 | D130: 田二会 | E130: 73.00 | F130: 83.82 | G130: 78.41
A131: 129 | B131: 第十一幼儿园 | C131: 20230201023230 | D131: 韩清 | E131: 68.00 | F131: 84.42 | G131: 76.21
A132: =ROW()-2 -> 130 | B132: 第十一幼儿园 | C132: 20230201012811 | D132: 张嘉莉 | E132: 64.00 | F132: 88.02 | G132: 76.01
A133: 131 | B133: 第十一幼儿园 | C133: 20230201020703 | D133: 陈红雨 | E133: 69.00 | F133: 82.68 | G133: 75.84
A134: 132 | B134: 第十一幼儿园 | C134: 20230201020424 | D134: 程浪 | E134: 67.00 | F134: 83.28 | G134: 75.14
A135: 133 | B135: 第十一幼儿园 | C135: 20230201015910 | D135: 苏莉 | E135: 69.50 | F135: 78.80 | G135: 74.15
A136: 134 | B136: 第十一幼儿园 | C136: 20230201014321 | D136: 郑璐璐 | E136: 63.50 | F136: 84.18 | G136: 73.84
A137: 135 | B137: 第十一幼儿园 | C137: 20230201020907 | D137: 韩姗 | E137: 62.00 | F137: 80.38 | G137: 71.19
A138: 136 | B138: 第十一幼儿园 | C138: 20230201015421 | D138: 王自杰 | E138: 63.00 | F138: 78.36 | G138: 70.68
A139: 137 | B139: 第十一幼儿园 | C139: 20230201010506 | D139: 王远丹 | E139: 62.00 | F139: 76.88 | G139: 69.44
A140: 138 | B140: 第十一幼儿园 | C140: 20230201012807 | D140: 张姗姗 | E140: 66.00 | F140: 缺考 | G140: =E140*0.5 -> 33.00
A141: 139 | B141: 第十一幼儿园 | C141: 20230201011219 | D141: 蒋姣 | E141: 62.00 | F141: 缺考 | G141: =E141*0.5 -> 31.00
A142: 140 | B142: 第十一幼儿园 | C142: 20230201014204 | D142: 丁宇 | E142: 62.00 | F142: 缺考 | G142: =E142*0.5 -> 31.00
A143: 141 | B143: 第十二幼儿园 | C143: 20230201010218 | D143: 安佳璐 | E143: 76.00 | F143: 81.40 | G143: =E143*0.5+F143*0.5 -> 78.70 | H143: 进入体检
A144: 142 | B144: 第十二幼儿园 | C144: 20230201012810 | D144: 杨婷婷 | E144: 76.50 | F144: 80.00 | G144: 78.25 | H144: 进入体检
A145: 143 | B145: 第十二幼儿园 | C145: 20230201013113 | D145: 熊树会 | E145: 75.50 | F145: 80.30 | G145: 77.90 | H145: 进入体检
A146: 144 | B146: 第十二幼儿园 | C146: 20230201020530 | D146: 韩祝 | E146: 76.00 | F146: 78.76 | G146: 77.38 | H146: 进入体检
A147: 145 | B147: 第十二幼儿园 | C147: 20230201011707 | D147: 段思琪 | E147: 70.00 | F147: 83.98 | G147: 76.99 | H147: 进入体检
A148: 146 | B148: 第十二幼儿园 | C148: 20230201022716 | D148: 蔡孝楠 | E148: 70.50 | F148: 83.06 | G148: 76.78 | H148: 进入体检
A149: 147 | B149: 第十二幼儿园 | C149: 20230201010704 | D149: 郑小晏 | E149: 74.00 | F149: 78.80 | G149: 76.40 | H149: 进入体检
A150: 148 | B150: 第十二幼儿园 | C150: 20230201010727 | D150: 吴姣 | E150: 72.00 | F150: 79.26 | G150: 75.63 | H150: 进入体检
A151: 149 | B151: 第十二幼儿园 | C151: 20230201014713 | D151: 王颖颖 | E151: 69.00 | F151: 81.38 | G151: 75.19
A152: 150 | B152: 第十二幼儿园 | C152: 20230201021514 | D152: 张维 | E152: 71.50 | F152: 78.26 | G152: 74.88
A153: 151 | B153: 第十二幼儿园 | C153: 20230201021030 | D153: 王露露 | E153: 73.00 | F153: 76.54 | G153: 74.77
A154: 152 | B154: 第十二幼儿园 | C154: 20230201020808 | D154: 冯懿 | E154: 68.50 | F154: 79.88 | G154: 74.19
A155: 153 | B155: 第十二幼儿园 | C155: 20230201016016 | D155: 任圆梅 | E155: 71.00 | F155: 77.12 | G155: 74.06
A156: 154 | B156: 第十二幼儿园 | C156: 20230201021520 | D156: 徐明灿 | E156: 65.50 | F156: 81.72 | G156: 73.61
A157: 155 | B157: 第十二幼儿园 | C157: 20230201014206 | D157: 李雪 | E157: 66.50 | F157: 80.14 | G157: 73.32
A158: 156 | B158: 第十二幼儿园 | C158: 20230201022307 | D158: 罗义 | E158: 67.00 | F158: 79.28 | G158: 73.14
A159: 157 | B159: 第十二幼儿园 | C159: 20230201020630 | D159: 卢雨荷 | E159: 65.00 | F159: 80.08 | G159: 72.54
A160: 158 | B160: 第十二幼儿园 | C160: 20230201015515 | D160: 陈露 | E160: 68.50 | F160: 75.98 | G160: 72.24
A161: 159 | B161: 第十二幼儿园 | C161: 20230201014527 | D161: 徐琴 | E161: 66.50 | F161: 77.52 | G161: 72.01
A162: 160 | B162: 第十二幼儿园 | C162: 20230201013720 | D162: 王建敏 | E162: 67.00 | F162: 75.04 | G162: 71.02
A163: 161 | B163: 第十二幼儿园 | C163: 20230201012303 | D163: 黄远维 | E163: 65.00 | F163: 73.18 | G163: 69.09
A164: 162 | B164: 第十二幼儿园 | C164: 20230201013122 | D164: 卢梦 | E164: 68.00 | F164: 69.76 | G164: 68.88
A165: 163 | B165: 第十二幼儿园 | C165: 20230201015728 | D165: 郑继梅 | E165: 65.50 | F165: 65.20 | G165: 65.35
A166: 164 | B166: 第十二幼儿园 | C166: 20230201016318 | D166: 赵银凤 | E166: 66.50 | F166: 缺考 | G166: =E166*0.5 -> 33.25
A167: 165 | B167: 第十二幼儿园 | C167: 20230201011428 | D167: 熊姗 | E167: 65.50 | F167: 缺考 | G167: =E167*0.5 -> 32.75
A168: 166 | B168: 第十二幼儿园 | C168: 20230201012425 | D168: 徐小艳 | E168: 65.00 | F168: 缺考 | G168: =E168*0.5 -> 32.50
